bitfinex/quotes_SOLUSD_20251117
["timestamp","ask_amount","ask_price","bid_price","bid_amount"]
[1763370457725,9.78882769,141.33,141.29,3.3748279]
[1763370457927,0.67,141.32,141.29,3.3748279]
[1763370460550,0.67,141.34,141.31,3.3748279]
[1763370460729,0.67,141.34,141.32,3.3748279]
[1763370462029,0.67,141.34,141.29,0.72]
[1763370462226,0.67,141.34,141.31,3.3748279]
[1763370465626,0.67,141.34,141.32,3.3748279]
[1763370465831,9.7251721,141.31,141.29,23.3712]
[1763370466038,7.0251721,141.3,141.29,23.3712]
[1763370467050,7.0251721,141.3,141.29,26.7460279]
[1763370467248,0.67,141.3,141.29,22.6512]
[1763370467448,10.4,141.29,141.27,22.6512]
[1763370467749,10.4,141.29,141.28,3.3748279]
[1763370468051,10.4,141.29,141.28,4.0948279]
[1763370468225,10.4,141.29,141.28,3.3748279]
[1763370468423,10.4,141.29,141.28,4.0948279]
[1763370470458,10.4,141.29,141.28,3.3748279]
[1763370470661,10.4,141.29,141.28,4.0948279]
[1763370471750,10.4,141.29,141.28,3.3748279]
[1763370472528,10.4,141.29,141.27,23.3712]
[1763370472732,11.07,141.29,141.28,3.3748279]
[1763370472959,0.67,141.28,141.27,3.3748279]
[1763370473547,0.67,141.29,141.27,3.3748279]
[1763370474145,0.67,141.3,141.27,3.3748279]
[1763370474336,0.67,141.29,141.28,3.3748279]
[1763370474533,112.985653,141.38,141.28,4.0948279]
[1763370474842,0.67,141.33,141.29,0.72]
[1763370475824,0.67,141.33,141.32,3.3748279]
[1763370476231,0.67,141.35,141.32,3.3748279]
[1763370476449,0.67,141.35,141.34,3.3748279]
[1763370478751,112.985653,141.38,141.34,3.3748279]
[1763370478951,0.67,141.36,141.35,3.3748279]
[1763370479247,0.67,141.36,141.31,0.72]
[1763370479553,0.67,141.36,141.35,3.3748279]
[1763370479846,7.0251721,141.34,141.31,0.72]
[1763370480047,4.3251721,141.33,141.31,0.72]
[1763370480952,4.3251721,141.33,141.32,3.3748279]
[1763370483433,5.0251721,141.38,141.32,7.4296558]
[1763370483644,4.3251721,141.37,141.33,4.0548279]
[1763370484030,4.3251721,141.37,141.34,0.68]
[1763370484854,4.3251721,141.37,141.36,26.0260279]
[1763370485365,4.3251721,141.37,141.36,26.7060279]
[1763370486357,0.2,141.39,141.37,22.6512]
[1763370486656,0.2,141.39,141.38,3.3748279]
[1763370486848,0.2,141.39,141.38,4.0548279]
[1763370487769,0.9,141.39,141.38,3.3748279]
[1763370488758,0.2,141.39,141.38,3.3748279]
[1763370488960,0.9,141.39,141.37,3.3748279]
[1763370489145,0.9,141.39,141.36,3.3748279]
[1763370489349,0.7,141.38,141.36,3.3748279]
[1763370489547,5.0251721,141.38,141.36,3.3748279]
[1763370489760,5.0251721,141.38,141.35,3.3748279]
[1763370489956,0.7,141.37,141.35,3.3748279]
[1763370490141,0.7,141.37,141.34,3.3748279]
[1763370490340,0.7,141.37,141.29,0.68]
[1763370490341,4.3251721,141.36,141.29,0.68]
[1763370490653,4.3251721,141.35,141.33,3.3748279]
[1763370490859,4.3251721,141.35,141.34,3.3748279]
[1763370491063,5.0251721,141.35,141.34,3.3748279]
[1763370491262,4.3251721,141.35,141.34,4.0548279]
[1763370491475,4.3251721,141.35,141.34,3.3748279]
[1763370491672,4.3251721,141.35,141.32,0.68]
[1763370491876,4.3251721,141.35,141.34,3.3748279]
[1763370494483,4.3251721,141.35,141.32,0.68]
[1763370494657,4.3251721,141.35,141.34,3.3748279]
[1763370495474,0.7,141.36,141.34,3.3748279]
[1763370495677,0.7,141.36,141.35,3.3748279]
[1763370496057,103.285653,141.38,141.35,3.3748279]
[1763370496256,102.585653,141.38,141.37,3.3748279]
[1763370496847,103.285653,141.38,141.37,3.3748279]
[1763370497052,103.285653,141.38,141.36,3.3748279]
[1763370497272,0.7,141.37,141.36,3.3748279]
[1763370498878,0.7,141.37,141.36,2.15709714]
[1763370500379,0.7,141.37,141.33,8.62838856]
[1763370500679,0.7,141.37,141.36,2.15709714]
[1763370501258,102.585653,141.38,141.36,2.15709714]
[1763370501475,103.285653,141.38,141.37,2.15709714]
[1763370506581,102.585653,141.38,141.37,2.15709714]
[1763370506760,102.585653,141.38,141.37,2.85709714]
[1763370507361,102.585653,141.38,141.37,2.15709714]
[1763370508181,102.585653,141.38,141.36,23.3512]
[1763370508381,102.585653,141.38,141.37,2.15709714]
[1763370510365,103.285653,141.38,141.37,2.15709714]
[1763370510566,102.585653,141.38,141.37,2.15709714]
[1763370510866,102.585653,141.38,141.36,22.6512]
[1763370511090,102.585653,141.38,141.37,2.15709714]
[1763370513884,103.255653,141.38,141.32,6.60672894]
[1763370514192,8.37,141.37,141.36,2.15709714]
[1763370514384,0.67,141.37,141.36,2.15709714]
[1763370515995,103.255653,141.38,141.36,2.15709714]
[1763370516172,0.67,141.37,141.34,23.3112]
[1763370517095,103.255653,141.38,141.34,23.3112]
[1763370517477,0.67,141.37,141.34,23.3112]
[1763370517804,103.255653,141.38,141.34,23.3112]
[1763370518163,0.67,141.37,141.34,23.3112]
[1763370518793,7.7,141.36,141.34,23.3112]
[1763370518979,7.7,141.36,141.35,22.6512]
[1763370520307,7.7,141.36,141.35,23.3112]
[1763370521187,7.7,141.36,141.35,22.6512]
[1763370521787,7.7,141.36,141.35,24.80829714]
[1763370524704,103.255653,141.38,141.35,24.80829714]
[1763370524886,0.67,141.37,141.35,24.80829714]
[1763370525087,0.67,141.37,141.36,2.15709714]
[1763370526498,102.585653,141.38,141.36,2.15709714]
[1763370526697,0.67,141.37,141.36,2.15709714]
[1763370527700,102.585653,141.38,141.36,2.15709714]
[1763370527907,103.255653,141.38,141.36,2.15709714]
[1763370528400,0.67,141.37,141.36,2.15709714]
[1763370528605,102.585653,141.38,141.36,23.3112]
[1763370528906,0.87,141.39,141.37,2.15709714]
[1763370529080,0.87,141.39,141.38,2.15709714]
[1763370529284,0.2,141.39,141.38,2.15709714]
[1763370529477,0.2,141.39,141.36,22.6512]
[1763370529680,0.2,141.39,141.38,2.15709714]
[1763370530403,0.87,141.39,141.38,2.15709714]
[1763370535904,0.2,141.39,141.38,2.15709714]
[1763370537091,0.2,141.39,141.38,2.81709714]
[1763370539291,0.2,141.39,141.38,33.59285509]
[1763370539512,102.585653,141.42,141.41,24.80829714]
[1763370539716,102.585653,141.42,141.41,2.15709714]
[1763370540296,103.255653,141.42,141.41,2.15709714]
[1763370540513,102.585653,141.42,141.41,2.15709714]
[1763370541414,102.585653,141.45,141.41,24.80829714]
[1763370541591,102.585653,141.45,141.44,2.15709714]
[1763370542249,0.7,141.47,141.44,2.15709714]
[1763370542521,0.7,141.47,141.46,2.15709714]
[1763370542722,0.9,141.49,141.46,2.15709714]
[1763370542893,0.9,141.49,141.48,2.15709714]
[1763370549200,0.2,141.49,141.48,2.15709714]
[1763370549391,0.9,141.49,141.44,22.6512]
[1763370549592,0.9,141.49,141.48,2.15709714]
[1763370549815,0.2,141.49,141.48,2.15709714]
[1763370550309,0.9,141.49,141.48,2.15709714]
[1763370552428,0.9,141.49,141.47,8.62838856]
[1763370552429,0.2,141.49,141.47,8.62838856]
[1763370552635,0.2,141.49,141.48,2.15709714]
[1763370553015,0.9,141.49,141.48,2.15709714]
[1763370553915,0.2,141.49,141.48,2.15709714]
[1763370554314,0.9,141.49,141.48,2.15709714]
[1763370554727,0.2,141.49,141.48,2.15709714]
[1763370555919,0.9,141.49,141.48,2.15709714]
[1763370556406,0.9,141.49,141.46,2.15709714]
[1763370556606,0.7,141.48,141.46,2.15709714]
[1763370556807,0.7,141.48,141.45,2.15709714]
[1763370557108,0.7,141.48,141.46,2.15709714]
[1763370557327,7.7,141.47,141.46,2.15709714]
[1763370557628,7.7,141.47,141.45,2.15709714]
[1763370557807,8.37,141.47,141.45,2.15709714]
[1763370558831,8.37,141.47,141.45,3.36621419]
[1763370559031,0.67,141.46,141.45,3.36621419]
[1763370560229,7.7,141.47,141.45,3.36621419]
[1763370560411,8.37,141.47,141.46,3.36621419]
[1763370561133,8.37,141.47,141.45,3.36621419]
[1763370561432,8.37,141.47,141.42,23.3312]
[1763370561621,8.37,141.46,141.45,3.36621419]
[1763370561820,0.67,141.46,141.45,3.36621419]
[1763370562031,102.585653,141.48,141.45,3.36621419]
[1763370562336,0.67,141.47,141.45,3.36621419]
[1763370562526,0.67,141.47,141.43,0.68]
[1763370562841,0.67,141.47,141.45,3.36621419]
[1763370563641,110.285653,141.46,141.43,3.36621419]
[1763370563810,110.285653,141.45,141.42,3.36621419]
[1763370564019,8.37,141.44,141.41,3.36621419]
[1763370564347,7.7,141.43,141.39,3.36621419]
[1763370564541,7.7,141.42,141.39,3.36621419]
[1763370564713,8.37,141.42,141.39,3.36621419]
[1763370564914,0.67,141.41,141.39,3.36621419]
[1763370565849,0.67,141.41,141.4,3.36621419]
[1763370566137,7.7,141.42,141.4,3.36621419]
[1763370566437,8.37,141.42,141.41,3.36621419]
[1763370568620,0.67,141.42,141.41,3.36621419]
[1763370569241,0.67,141.42,141.37,0.68]
[1763370569418,0.67,141.42,141.4,3.36621419]
[1763370570041,112.37448069,141.45,141.41,3.36621419]
[1763370570042,0.67,141.43,141.41,3.36621419]
[1763370571913,0.67,141.43,141.42,3.36621419]
[1763370572131,0.67,141.43,141.41,3.36621419]
[1763370573513,102.585653,141.44,141.42,3.36621419]
[1763370573714,103.235653,141.44,141.43,3.36621419]
[1763370574723,103.235653,141.44,141.4,23.3112]
[1763370574918,103.235653,141.44,141.43,3.36621419]
[1763370575122,102.585653,141.44,141.43,3.36621419]
[1763370576549,8.35,141.48,141.43,4.02621419]
[1763370576845,7.7,141.48,141.47,3.36621419]
[1763370577652,0.2,141.49,141.47,3.36621419]
[1763370577867,0.2,141.49,141.48,3.36621419]
[1763370582863,0.2,141.49,141.46,0.66]
[1763370583161,0.2,141.49,141.48,3.36621419]
[1763370585063,0.2,141.49,141.48,4.02621419]
[1763370585562,0.2,141.49,141.48,26.67741419]
[1763370586056,0.2,141.49,141.48,47.44045383]
[1763370586761,0.2,141.49,141.48,26.67741419]
[1763370590652,0.2,141.49,141.48,48.19798119]
[1763370603473,0.2,141.49,141.48,57.98680888]
[1763370608782,0.2,141.52,141.51,32.44002769]
[1763370608961,0.2,141.54,141.52,9.78882769]
[1763370609151,0.2,141.56,141.55,22.6512]
[1763370609354,0.2,141.56,141.55,26.01741419]
[1763370609871,0.2,141.56,141.55,26.68741419]
[1763370610071,0.2,141.56,141.55,4.03621419]
[1763370610277,7.9,141.58,141.57,22.6512]
[1763370610461,7.9,141.58,141.57,26.01741419]
[1763370610857,0.2,141.58,141.57,26.68741419]
[1763370611573,0.2,141.58,141.57,26.01741419]
[1763370611781,0.2,141.58,141.57,26.68741419]
[1763370612371,0.2,141.58,141.57,43.5398853]
[1763370612565,0.2,141.59,141.58,13.15504188]
[1763370612770,0.2,141.6,141.58,17.19125607]
[1763370612951,0.2,141.6,141.59,30.05362838]
[1763370613355,0.2,141.61,141.59,30.05362838]
[1763370613663,0.2,141.61,141.6,6.73242838]
[1763370613967,0.2,141.61,141.6,7.40242838]
[1763370615989,0.2,141.62,141.6,7.40242838]
[1763370615990,0.2,141.62,141.6,17.19125607]
[1763370616157,0.2,141.62,141.61,30.05362838]
[1763370616766,0.2,141.63,141.61,30.05362838]
[1763370616974,0.2,141.63,141.62,26.68741419]
[1763370617484,0.2,141.63,141.62,29.51696888]
[1763370620168,0.89,141.63,141.58,0.66]
[1763370620496,0.89,141.63,141.62,3.36621419]
[1763370620995,0.89,141.63,141.62,2.14892742]
[1763370621656,8.59,141.63,141.62,2.14892742]
[1763370621858,7.7,141.62,141.6,2.14892742]
[1763370622057,8.39,141.62,141.59,2.14892742]
[1763370622256,0.69,141.61,141.58,22.6512]
[1763370622469,0.69,141.61,141.6,2.14892742]
[1763370623483,0.69,141.61,141.54,35.36453737]
[1763370623484,0.69,141.61,141.58,2.14892742]
[1763370623685,0.69,141.61,141.57,2.14892742]
[1763370624793,0.69,141.61,141.59,2.14892742]
[1763370625293,0.69,141.61,141.57,2.14892742]
[1763370625464,0.69,141.61,141.5,22.77892867]
[1763370625789,0.69,141.61,141.56,2.14892742]
[1763370631693,0.69,141.61,141.54,22.6512]
[1763370631894,0.69,141.61,141.56,2.14892742]
[1763370633381,2.83892742,141.61,141.55,2.14892742]
[1763370633579,110.285653,141.6,141.55,2.14892742]
[1763370633766,110.955653,141.6,141.55,2.14892742]
[1763370634099,0.67,141.59,141.55,2.14892742]
[1763370634781,0.67,141.59,141.53,22.6512]
[1763370635093,110.285653,141.58,141.57,2.14892742]
[1763370635284,102.585653,141.58,141.56,2.14892742]
[1763370635487,0.67,141.57,141.56,2.14892742]
[1763370636178,102.585653,141.58,141.56,2.14892742]
[1763370636494,0.67,141.59,141.57,2.14892742]
[1763370636698,0.67,141.59,141.58,2.14892742]
[1763370637673,103.255653,141.62,141.58,2.81892742]
[1763370637872,102.585653,141.62,141.61,2.14892742]
[1763370638597,103.255653,141.62,141.61,2.14892742]
[1763370639896,0.67,141.62,141.61,2.14892742]
[1763370640594,0.67,141.62,141.58,0.67]
[1763370640789,0.67,141.62,141.61,2.14892742]
[1763370643617,0.67,141.62,141.6,2.14892742]
[1763370645099,7.7,141.61,141.6,2.14892742]
[1763370645467,8.37,141.61,141.6,2.14892742]
[1763370647095,7.7,141.61,141.6,2.14892742]
[1763370647397,8.37,141.61,141.6,2.14892742]
[1763370649293,7.7,141.61,141.6,2.14892742]
[1763370650115,8.37,141.61,141.6,2.14892742]
[1763370650897,0.67,141.61,141.6,2.14892742]
[1763370651580,102.585653,141.62,141.6,2.14892742]
[1763370651783,103.255653,141.62,141.61,2.14892742]
[1763370653695,102.585653,141.62,141.61,2.14892742]
[1763370655453,7.7,141.62,141.61,2.81892742]
[1763370656702,0.2,141.63,141.62,22.6512]
[1763370657035,0.2,141.63,141.62,25.47012742]
[1763370660325,0.2,141.63,141.62,24.80012742]
[1763370660504,0.2,141.63,141.58,6.64329562]
[1763370660505,0.86,141.63,141.58,6.64329562]
[1763370660822,0.86,141.63,141.61,2.14892742]
[1763370660823,0.66,141.62,141.61,2.14892742]
[1763370663442,0.86,141.63,141.61,2.14892742]
[1763370663604,0.86,141.63,141.62,2.14892742]
[1763370663927,0.2,141.63,141.62,2.14892742]
[1763370664130,0.86,141.63,141.62,2.14892742]
[1763370664333,0.2,141.63,141.62,2.14892742]
[1763370665517,7.9,141.63,141.62,2.14892742]
[1763370666409,0.2,141.63,141.62,19.71890466]
[1763370666609,0.2,141.64,141.62,19.71890466]
[1763370666821,0.2,141.64,141.63,2.86892742]
[1763370667018,8.56,141.64,141.63,2.14892742]
[1763370667217,7.9,141.64,141.63,2.86892742]
[1763370667920,0.2,141.64,141.63,25.52012742]
[1763370669333,0.1,141.71,141.67,22.6512]
[1763370669628,0.66,141.7,141.68,2.14892742]
[1763370670222,0.66,141.7,141.69,2.14892742]
[1763370674043,0.66,141.7,141.67,22.6512]
[1763370674340,0.66,141.7,141.69,2.14892742]
[1763370675033,0.66,141.7,141.63,0.72]
[1763370675208,0.66,141.7,141.68,2.14892742]
[1763370675620,7.7,141.69,141.68,2.14892742]
[1763370676029,8.36,141.69,141.67,2.14892742]
[1763370676333,0.66,141.68,141.64,0.72]
[1763370676637,7.7,141.67,141.64,0.72]
[1763370677033,0.66,141.68,141.63,25.48055455]
[1763370677034,7.7,141.66,141.63,25.48055455]
[1763370677214,7.7,141.66,141.64,22.6512]
[1763370677412,7.7,141.66,141.65,2.14892742]
[1763370680239,7.7,141.66,141.65,24.80012742]
[1763370682839,7.7,141.66,141.65,22.6512]
[1763370683036,7.7,141.66,141.65,26.00717495]
[1763370683339,8.42,141.66,141.65,26.00717495]
[1763370683712,8.42,141.66,141.65,3.35597495]
[1763370684734,7.7,141.66,141.65,3.35597495]
[1763370684937,7.7,141.66,141.65,26.65717495]
[1763370685321,0.1,141.71,141.69,22.6512]
[1763370685547,0.1,141.71,141.7,26.00717495]
[1763370686232,0.1,141.71,141.7,26.65717495]
[1763370686430,0.1,141.71,141.7,26.00717495]
[1763370687244,0.82,141.71,141.66,0.65]
[1763370687545,0.82,141.71,141.68,22.6512]
[1763370687737,0.82,141.71,141.69,3.35597495]
[1763370687939,0.82,141.71,141.7,3.35597495]
[1763370690043,0.1,141.71,141.7,4.00597495]
[1763370690246,0.1,141.72,141.7,4.00597495]
[1763370690457,0.1,141.72,141.71,4.00597495]
[1763370693443,0.1,141.72,141.71,0.65]
[1763370693634,0.1,141.72,141.71,4.02597495]
[1763370695443,0.1,141.72,141.71,26.67717495]
[1763370696227,0.1,141.72,141.71,4.02597495]
[1763370696551,0.1,141.72,141.71,3.35597495]
[1763370697541,0.1,141.72,141.71,26.00717495]
[1763370699049,0.1,141.72,141.71,22.6512]
[1763370699346,0.1,141.72,141.71,26.00717495]
[1763370705132,0.76,141.72,141.71,26.00717495]
[1763370705335,7.7,141.76,141.71,26.67717495]
[1763370705533,7.7,141.76,141.75,3.35597495]
[1763370705941,0.1,141.77,141.75,7.3819499]
[1763370706142,0.1,141.77,141.76,0.67]
[1763370706345,0.1,141.77,141.76,29.50412996]
[1763370708280,0.1,141.78,141.76,36.55830603]
[1763370708437,0.1,141.78,141.76,25.47815501]
[1763370708756,0.1,141.78,141.77,3.35597495]
[1763370709651,0.1,141.78,141.77,4.02597495]
[1763370710349,0.1,141.78,141.77,26.67717495]
[1763370710746,0.1,141.78,141.77,26.00717495]
[1763370710960,0.1,141.78,141.77,22.6512]
[1763370711166,0.1,141.78,141.77,26.00717495]
[1763370711463,0.76,141.78,141.77,26.00717495]
[1763370711658,0.1,141.78,141.77,26.00717495]
[1763370712350,0.76,141.78,141.77,26.00717495]
[1763370712553,0.1,141.81,141.78,9.78882769]
[1763370712864,0.1,141.81,141.8,6.7119499]
[1763370713039,0.76,141.81,141.78,22.6512]
[1763370713249,0.76,141.81,141.8,3.35597495]
[1763370714554,0.76,141.81,141.77,22.6512]
[1763370714755,0.76,141.81,141.8,3.35597495]
[1763370717548,0.1,141.81,141.8,3.35597495]
[1763370718752,0.1,141.81,141.78,23.3012]
[1763370718964,0.1,141.81,141.8,3.35597495]
[1763370719155,0.1,141.81,141.79,2.82615607]
[1763370719364,0.1,141.81,141.8,3.35597495]
[1763370719977,0.76,141.81,141.8,3.35597495]
[1763370720550,0.1,141.81,141.8,3.35597495]
[1763370720952,0.76,141.81,141.8,3.35597495]
[1763370722080,0.1,141.81,141.8,3.35597495]
[1763370724378,0.1,141.81,141.8,33.70936112]
[1763370724562,0.1,141.81,141.8,46.85416376]
[1763370724766,0.1,141.81,141.8,24.20296376]
[1763370724954,0.1,141.82,141.8,24.20296376]
[1763370725163,0.66,141.89,141.84,22.6512]
[1763370725360,0.66,141.89,141.88,3.35597495]
[1763370726165,0.66,141.89,141.85,9.78882769]
[1763370726368,0.66,141.89,141.88,3.35597495]
[1763370726769,0.76,141.91,141.88,26.00717495]
[1763370726969,0.76,141.91,141.9,3.35597495]
[1763370727166,0.76,141.91,141.88,22.6512]
[1763370727371,0.76,141.91,141.9,3.35597495]
[1763370727564,0.76,141.91,141.89,3.35597495]
[1763370729383,0.76,141.91,141.9,3.35597495]
[1763370731667,0.76,141.91,141.88,22.6512]
[1763370731862,0.76,141.91,141.89,3.35597495]
[1763370732071,0.76,141.91,141.86,22.6512]
[1763370732368,0.76,141.91,141.89,3.35597495]
[1763370732581,4.11597495,141.91,141.85,3.35597495]
[1763370732882,32.44002769,141.9,141.82,3.35597495]
[1763370733086,32.44002769,141.9,141.77,0.55]
[1763370733087,3.35597495,141.87,141.77,0.55]
[1763370733271,0.66,141.86,141.81,3.35597495]
[1763370733869,7.7,141.85,141.76,0.55]
[1763370734061,7.7,141.85,141.8,3.35597495]
[1763370734262,0.66,141.84,141.79,3.35597495]
[1763370734480,0.66,141.84,141.77,22.6512]
[1763370734688,0.66,141.84,141.79,26.00717495]
[1763370736785,0.66,141.84,141.8,3.35597495]
[1763370737108,4.01597495,141.84,141.79,22.6512]
[1763370737591,0.72,141.83,141.79,22.6512]
[1763370737975,0.72,141.83,141.79,26.00717495]
[1763370738297,0.72,141.83,141.81,3.35597495]
[1763370738496,0.72,141.83,141.8,3.35597495]
[1763370738972,0.72,141.83,141.79,22.6512]
[1763370739291,0.72,141.83,141.8,3.35597495]
[1763370740273,0.72,141.83,141.79,22.6512]
[1763370740474,0.72,141.83,141.8,3.35597495]
[1763370741492,0.72,141.83,141.79,26.00717495]
[1763370742704,7.7,141.82,141.79,26.00717495]
[1763370742903,7.7,141.82,141.79,24.79538242]
[1763370743200,0.7,141.81,141.79,24.79538242]
[1763370743376,7.7,141.8,141.79,24.79538242]
[1763370743777,8.4,141.8,141.79,24.79538242]
[1763370743995,8.4,141.8,141.78,2.14418242]
[1763370744204,8.4,141.8,141.73,5.92329562]
[1763370744205,8.4,141.79,141.73,6.47329562]
[1763370744495,8.4,141.79,141.77,22.6512]
[1763370744797,0.7,141.78,141.73,0.55]
[1763370744990,0.7,141.78,141.75,24.79538242]
[1763370745197,0.7,141.78,141.76,2.14418242]
[1763370749200,0.7,141.78,141.74,22.6512]
[1763370749201,0.7,141.78,141.74,2.14418242]
[1763370749380,2.14418242,141.77,141.72,2.14418242]
[1763370749579,9.84418242,141.77,141.72,2.14418242]
[1763370749797,0.7,141.76,141.72,2.14418242]
[1763370750000,8.4,141.76,141.72,2.14418242]
[1763370750520,8.4,141.75,141.72,2.14418242]
[1763370750877,0.71,141.74,141.72,2.14418242]
[1763370751692,7.7,141.75,141.73,2.14418242]
[1763370752093,0.71,141.74,141.73,2.14418242]
[1763370752491,7.7,141.75,141.73,2.14418242]
[1763370752699,7.7,141.75,141.74,2.14418242]
[1763370752898,8.41,141.79,141.74,24.79538242]
[1763370753202,8.41,141.79,141.76,2.14418242]
[1763370753500,0.71,141.78,141.76,2.14418242]
[1763370754203,7.7,141.79,141.77,2.14418242]
[1763370754403,8.41,141.79,141.78,2.14418242]
[1763370754704,7.7,141.79,141.78,2.14418242]
[1763370755203,7.7,141.79,141.77,2.14418242]
[1763370755405,0.71,141.78,141.77,2.14418242]
[1763370758813,8.41,141.79,141.77,2.14418242]
[1763370759207,7.7,141.78,141.77,2.14418242]
[1763370759709,7.7,141.78,141.77,2.69418242]
[1763370760708,7.7,141.78,141.77,2.14418242]
[1763370760918,7.7,141.78,141.77,0.55]
[1763370761114,7.7,141.78,141.77,23.2012]
[1763370762097,7.7,141.78,141.77,22.6512]
[1763370770008,7.7,141.78,141.77,2.14418242]
[1763370770411,7.7,141.77,141.76,22.6512]
[1763370770613,8.41,141.77,141.76,2.14418242]
[1763370771122,7.7,141.77,141.76,24.79538242]
[1763370773811,7.7,141.77,141.76,25.34538242]
[1763370774700,7.7,141.77,141.76,24.79538242]
[1763370775096,8.41,141.77,141.76,24.79538242]
[1763370775835,7.7,141.77,141.76,24.79538242]
[1763370780939,7.7,141.77,141.76,2.14418242]
[1763370781628,7.7,141.77,141.76,32.39955849]
[1763370781831,0.68,141.82,141.76,42.18838618]
[1763370782010,7.7,141.81,141.8,22.6512]
[1763370782206,0.68,141.82,141.81,22.6512]
[1763370782411,0.68,141.82,141.81,24.79538242]
[1763370783239,102.585653,141.85,141.81,24.79538242]
[1763370783526,0.68,141.82,141.81,22.6512]
[1763370784633,102.585653,141.84,141.81,24.79538242]
[1763370784835,102.585653,141.84,141.83,2.14418242]
[1763370785132,103.265653,141.84,141.83,2.14418242]
[1763370785916,102.585653,141.84,141.83,2.14418242]
[1763370787018,0.68,141.86,141.85,22.6512]
[1763370787215,0.68,141.86,141.85,24.79538242]
[1763370787716,0.68,141.86,141.82,31.77792968]
[1763370789034,0.68,141.86,141.82,29.08374726]
[1763370789239,0.68,141.86,141.84,2.14418242]
[1763370789425,0.68,141.86,141.85,2.14418242]
[1763370791138,0.68,141.86,141.82,22.6512]
[1763370791322,7.7,141.85,141.82,24.79538242]
[1763370791923,7.7,141.85,141.82,22.6512]
[1763370792123,102.585653,141.89,141.82,22.6512]
[1763370792124,8.38,141.84,141.82,22.6512]
[1763370792323,0.68,141.84,141.8,21.19467307]
[1763370792526,0.68,141.83,141.8,2.14418242]
[1763370792725,8.38,141.83,141.76,5.93868901]
[1763370792930,10.52418242,141.83,141.77,2.14418242]
[1763370793124,0.68,141.82,141.79,22.6512]
[1763370797234,2.82418242,141.82,141.74,22.77735155]
[1763370797436,2.14418242,141.81,141.77,22.6512]
[1763370797620,2.83418242,141.81,141.77,22.6512]
[1763370797825,2.83418242,141.8,141.76,22.6512]
[1763370798056,2.14418242,141.79,141.73,2.14418242]
[1763370798247,2.83418242,141.79,141.73,41.63404496]
[1763370798534,0.69,141.78,141.73,24.79538242]
[1763370798841,0.69,141.78,141.74,23.2012]
[1763370799047,0.69,141.78,141.77,2.14418242]
[1763370800946,0.69,141.78,141.76,24.79538242]
[1763370802952,0.69,141.78,141.76,26.00262787]
[1763370803250,0.69,141.78,141.77,3.35142787]
[1763370805734,0.69,141.78,141.76,22.6512]
[1763370806151,0.69,141.78,141.76,26.00262787]
[1763370808953,7.7,141.77,141.76,26.00262787]
[1763370809945,8.39,141.77,141.76,26.00262787]
[1763370810143,7.7,141.77,141.76,26.00262787]
[1763370810744,8.41,141.77,141.76,26.00262787]
[1763370812754,8.41,141.77,141.76,22.6512]
[1763370812936,8.41,141.77,141.76,26.00262787]
[1763370814657,7.7,141.77,141.76,26.00262787]
[1763370814832,0.71,141.78,141.76,26.00262787]
[1763370816236,0.71,141.78,141.77,22.6512]
[1763370816947,103.295653,141.8,141.77,26.00262787]
[1763370817145,7.7,141.79,141.77,23.2012]
[1763370817346,7.7,141.79,141.78,21.20216262]
[1763370818352,7.7,141.79,141.78,24.55359049]
[1763370818741,7.7,141.79,141.78,25.10359049]
[1763370820567,7.7,141.79,141.78,24.55359049]
[1763370821263,7.7,141.79,141.78,25.10359049]